bitfinex/quotes_BTCUSD_20240823
["timestamp","ask_amount","ask_price","bid_price","bid_amount"]
[1724446837104,0.0605983,63751.0,63750.0,2.4671445]
[1724446837559,0.0605983,63751.0,63750.0,2.1534195]
[1724446838001,0.0495983,63751.0,63750.0,2.1524195]
[1724446838279,0.0495983,63751.0,63750.0,2.2182195]
[1724446838280,0.0385983,63751.0,63750.0,2.2182195]
[1724446838516,0.0385983,63751.0,63750.0,2.53365731]
[1724446838517,0.0475983,63751.0,63750.0,2.53365731]
[1724446838744,0.0475983,63751.0,63750.0,3.1185465]
[1724446838745,0.0245983,63751.0,63750.0,3.1185465]
[1724446838971,0.0385983,63751.0,63750.0,3.1185465]
[1724446839188,0.0395983,63751.0,63750.0,3.1185465]
[1724446839401,0.000825,63765.0,63764.0,0.470484]
[1724446839628,0.000825,63765.0,63764.0,0.93214]
[1724446839629,0.16482798,63765.0,63764.0,0.93214]
[1724446839852,0.1894157,63765.0,63764.0,0.93214]
[1724446840321,0.02541272,63765.0,63764.0,0.61919681]
[1724446840543,0.02541272,63765.0,63764.0,0.93385281]
[1724446841229,0.02541272,63765.0,63764.0,0.62019681]
[1724446841464,0.03341272,63765.0,63764.0,0.62119681]
[1724446841680,0.02541272,63765.0,63764.0,0.93385281]
[1724446841898,0.02541272,63765.0,63764.0,0.93285281]
[1724446842162,0.02641272,63765.0,63764.0,0.93285281]
[1724446842824,0.02641272,63765.0,63764.0,0.93385281]
[1724446844171,0.02641272,63765.0,63764.0,0.62019681]
[1724446844397,0.1904157,63765.0,63764.0,0.001]
[1724446844845,0.1904157,63765.0,63764.0,0.0832]
[1724446845521,0.02641272,63765.0,63764.0,0.86805281]
[1724446845751,0.02641272,63765.0,63764.0,0.93385281]
[1724446846203,0.02641272,63765.0,63764.0,1.24750881]
[1724446847094,0.02641272,63765.0,63764.0,0.93385281]
[1724446857687,0.02641272,63765.0,63764.0,0.86805281]
[1724446859507,0.02641272,63765.0,63764.0,1.24260881]
[1724446860476,0.02641272,63765.0,63764.0,0.92895281]
[1724446860697,0.02541272,63765.0,63764.0,0.92795281]
[1724446861159,0.02641272,63765.0,63764.0,0.55439681]
[1724446861394,0.4358407,63765.0,63764.0,0.001]
[1724446861627,0.142,63762.0,63751.0,0.0009086]
[1724446861859,0.156849,63756.0,63751.0,0.0009086]
[1724446862076,0.15785102,63755.0,63751.0,0.0009086]
[1724446862305,0.156847,63757.0,63751.0,0.0009086]
[1724446862539,0.00100002,63756.0,63753.0,0.156854]
[1724446862761,0.02459254,63755.0,63753.0,0.156854]
[1724446863240,0.02459254,63755.0,63752.0,0.313714]
[1724446863509,0.01459254,63755.0,63753.0,0.156854]
[1724446865123,0.01459254,63755.0,63753.0,0.160854]
[1724446865339,0.00100002,63754.0,63753.0,0.004]
[1724446865561,0.00100002,63754.0,63753.0,0.007]
[1724446866013,0.00100002,63754.0,63753.0,0.163855]
[1724446866245,0.01559254,63755.0,63753.0,0.163855]
[1724446866945,0.01459254,63755.0,63753.0,0.160855]
[1724446867180,0.01459254,63755.0,63752.0,0.156856]
[1724446867404,0.001,63754.0,63753.0,0.003]
[1724446867618,0.001,63754.0,63753.0,0.008]
[1724446867833,0.001,63754.0,63752.0,0.156856]
[1724446867834,0.01559256,63755.0,63752.0,0.156856]
[1724446868053,0.01559254,63755.0,63753.0,0.163855]
[1724446868274,0.01559254,63755.0,63753.0,0.003]
[1724446868497,0.01459254,63755.0,63752.0,0.156856]
[1724446868714,0.01459254,63755.0,63753.0,0.005]
[1724446868939,0.001,63754.0,63753.0,0.003]
[1724446869422,0.001,63754.0,63753.0,0.007]
[1724446869874,0.08104,63754.0,63753.0,0.163855]
[1724446870085,0.08004,63754.0,63753.0,0.160855]
[1724446870528,0.08004,63754.0,63753.0,0.788275]
[1724446871281,0.08104,63754.0,63753.0,0.851675]
[1724446871510,0.08104,63754.0,63753.0,0.533965]
[1724446872223,0.08104,63754.0,63753.0,0.538965]
[1724446873187,0.08104,63754.0,63753.0,0.164855]
[1724446873419,0.08104,63754.0,63753.0,0.478565]
[1724446875301,0.08104,63754.0,63753.0,0.792275]
[1724446879542,0.08104,63754.0,63753.0,0.478565]
[1724446880981,0.08104,63754.0,63753.0,0.792275]
[1724446882100,0.08104,63754.0,63753.0,0.478565]
[1724446883256,0.08104,63754.0,63753.0,0.792275]
[1724446883722,0.08104,63754.0,63753.0,0.478565]
[1724446884177,0.08104,63754.0,63753.0,0.792275]
[1724446884639,0.310843,63754.0,63753.0,0.008]
[1724446885345,0.310843,63754.0,63753.0,0.478565]
[1724446885582,0.14584,63754.0,63753.0,0.7931825]
[1724446885808,0.08104,63754.0,63753.0,0.7931825]
[1724446886026,0.08104,63754.0,63753.0,0.8731825]
[1724446890704,0.15874,63754.0,63753.0,0.7931825]
[1724446892383,0.08104,63754.0,63753.0,0.7931825]
[1724446900813,0.08104,63754.0,63753.0,0.8731825]
[1724446901995,0.08104,63754.0,63753.0,1.1868925]
[1724446907826,0.08104,63754.0,63753.0,1.18760531]
[1724446908263,0.08104,63754.0,63753.0,1.50131531]
[1724446908932,0.08104,63754.0,63753.0,1.56251531]
[1724446919341,0.08104,63754.0,63753.0,1.50131531]
[1724446923862,0.000825,63765.0,63764.0,1.55396481]
[1724446924086,0.000825,63765.0,63764.0,1.24030881]
[1724446924303,0.000825,63765.0,63764.0,1.17930881]
[1724446925239,0.001825,63765.0,63764.0,1.18230881]
[1724446925725,0.000825,63765.0,63764.0,1.17930881]
[1724446926381,0.001825,63765.0,63764.0,1.18530881]
[1724446926605,0.000825,63765.0,63764.0,1.17930881]
[1724446927039,0.001825,63765.0,63764.0,1.18830881]
[1724446927265,0.000825,63765.0,63764.0,1.17930881]
[1724446927484,0.000825,63765.0,63764.0,1.18930881]
[1724446927699,0.001825,63765.0,63764.0,1.18930881]
[1724446928138,0.002825,63765.0,63764.0,1.19830881]
[1724446928369,0.002825,63765.0,63764.0,1.116796]
[1724446928641,0.002825,63765.0,63764.0,0.489484]
[1724446928642,0.063025,63765.0,63764.0,0.489484]
[1724446928860,0.062025,63765.0,63764.0,0.79414]
[1724446929294,0.063025,63765.0,63764.0,0.80414]
[1724446929526,0.27386187,63765.0,63764.0,0.490484]
[1724446929734,0.27385851,63765.0,63764.0,0.490484]
[1724446929955,0.27385299,63765.0,63764.0,0.490484]
[1724446930413,0.87564867,63765.0,63764.0,0.02]
[1724446930631,1.37731491,63765.0,63764.0,0.02]
[1724446930870,1.57288116,63765.0,63764.0,0.02]
[1724446931133,0.76546697,63765.0,63764.0,0.02]
[1724446931359,0.76346697,63765.0,63754.0,0.49300435]
[1724446931575,0.76346697,63765.0,63764.0,0.005]
[1724446931576,0.33328237,63765.0,63764.0,0.005]
[1724446931796,0.47387925,63765.0,63764.0,0.005]
[1724446932035,0.40362798,63765.0,63761.0,0.156835]
[1724446932251,0.046832,63762.0,63761.0,0.156835]
[1724446932529,0.046832,63762.0,63761.0,0.470506]
[1724446932743,0.046832,63763.0,63761.0,0.470506]
[1724446932931,0.046832,63763.0,63762.0,0.156833]
[1724446933166,0.26400298,63764.0,63762.0,0.156833]
[1724446933167,0.33425442,63764.0,63762.0,0.156833]
[1724446933375,0.33425442,63764.0,63763.0,0.15683]
[1724446933592,0.33425442,63764.0,63761.0,0.156833]
[1724446933593,0.33425467,63764.0,63761.0,0.156833]
[1724446933813,0.009,63762.0,63761.0,0.157833]
[1724446934033,0.3666719,63762.0,63761.0,0.157833]
[1724446934254,0.70542269,63762.0,63761.0,0.156833]
[1724446934481,0.45984599,63762.0,63761.0,0.784175]
[1724446934697,0.1,63762.0,63761.0,0.785175]
[1724446934912,0.14682985,63762.0,63761.0,0.785175]
[1724446935132,0.14682985,63762.0,63761.0,0.784175]
[1724446935581,0.14982985,63762.0,63761.0,0.784175]
[1724446935808,0.14982985,63762.0,63761.0,0.470504]
[1724446936295,0.54439283,63762.0,63761.0,0.470504]
[1724446936520,0.44439283,63762.0,63761.0,0.470504]
[1724446936753,0.45073249,63762.0,63761.0,0.470504]
[1724446936972,0.5443596,63762.0,63761.0,0.470504]
[1724446937212,0.62682378,63762.0,63760.0,0.156836]
[1724446937448,0.75533549,63761.0,63758.0,0.470526]
[1724446937687,0.46474684,63760.0,63759.0,0.156839]
[1724446937920,0.72874982,63760.0,63759.0,0.156839]
[1724446938630,0.61173547,63760.0,63759.0,0.156839]
[1724446939323,0.61273547,63760.0,63759.0,0.156839]
[1724446939559,0.61273547,63760.0,63756.0,0.313695]
[1724446939783,0.61273547,63760.0,63756.0,0.470542]
[1724446939784,0.07019516,63757.0,63756.0,0.470542]
[1724446940276,0.25859655,63759.0,63756.0,0.470542]
[1724446940277,0.07019516,63758.0,63757.0,0.156845]
[1724446940965,0.0627,63757.0,63753.0,0.0009075]
[1724446941206,0.156852,63754.0,63753.0,0.0009075]
[1724446941477,0.66864424,63754.0,63753.0,0.0009075]
[1724446941699,1.08234924,63754.0,63753.0,0.0009075]
[1724446941917,0.76864424,63754.0,63753.0,0.0009075]
[1724446942140,0.86221643,63754.0,63753.0,0.0009075]
[1724446942609,1.52371858,63754.0,63753.0,0.0009075]
[1724446943081,0.76964424,63754.0,63753.0,0.0069075]
[1724446943298,0.76964987,63754.0,63753.0,0.0109075]
[1724446943526,0.49202113,63754.0,63753.0,0.0109075]
[1724446943743,0.86322125,63754.0,63753.0,0.0109075]
[1724446944456,1.17692625,63754.0,63753.0,0.0109075]
[1724446945134,0.86322125,63754.0,63753.0,0.0109075]
[1724446945364,0.4686462,63754.0,63753.0,0.0109075]
[1724446945581,0.42185498,63754.0,63753.0,0.0109075]
[1724446945829,0.46864454,63754.0,63753.0,0.0109075]
[1724446946800,0.53134454,63754.0,63753.0,0.0109075]
[1724446947038,0.61124454,63754.0,63753.0,0.0109075]
[1724446947470,0.61123603,63754.0,63753.0,0.0109075]
[1724446948004,0.45438403,63754.0,63753.0,0.0109075]
[1724446948230,0.61123603,63754.0,63753.0,0.0109075]
[1724446948441,0.61123199,63754.0,63753.0,0.0109075]
[1724446948663,0.56445498,63754.0,63753.0,0.0109075]
[1724446949094,0.40760298,63754.0,63753.0,0.0109075]
[1724446949728,0.56445498,63754.0,63753.0,0.0109075]
[1724446949964,0.40760298,63754.0,63753.0,0.0109075]
[1724446951007,0.56445498,63754.0,63753.0,0.0109075]
[1724446951210,0.40760298,63754.0,63753.0,0.0109075]
[1724446951618,0.56445498,63754.0,63753.0,0.0109075]
[1724446952500,0.40760298,63754.0,63753.0,0.0109075]
[1724446952711,0.40760298,63754.0,63753.0,0.1677625]
[1724446952952,0.32770298,63754.0,63753.0,0.0109075]
[1724446956330,0.26500298,63754.0,63753.0,0.4814725]
[1724446956566,0.101,63754.0,63753.0,1.1888925]
[1724446956782,0.001,63754.0,63753.0,1.1888925]
[1724446957412,0.001,63754.0,63753.0,1.2488925]
[1724446959099,0.001,63754.0,63753.0,1.1888925]
[1724446965530,0.001,63754.0,63753.0,1.50331531]
[1724446965932,0.001,63754.0,63753.0,1.56331531]
[1724446970828,0.001,63754.0,63753.0,1.87702531]
[1724446971244,0.001,63754.0,63753.0,1.87802531]
[1724446971447,0.001,63754.0,63753.0,1.87702531]
[1724446971667,0.001,63754.0,63753.0,1.87302531]
[1724446972133,0.001,63754.0,63753.0,1.87702531]
[1724446972340,0.001,63754.0,63753.0,1.87302531]
[1724446972598,0.002,63754.0,63753.0,1.88202531]
[1724446972831,0.000825,63755.0,63754.0,1.411672]
[1724446973048,0.000825,63755.0,63754.0,1.55648481]
[1724446973924,0.000825,63755.0,63754.0,2.03519279]
[1724446974147,0.001825,63755.0,63754.0,2.04819279]
[1724446975077,0.002825,63755.0,63754.0,2.06219279]
[1724446975375,0.002825,63755.0,63754.0,2.04819279]
[1724446975582,0.003825,63755.0,63754.0,2.06219279]
[1724446976012,0.003825,63755.0,63754.0,2.06319279]
[1724446976908,0.003825,63755.0,63754.0,2.06519279]
[1724446977784,0.003825,63755.0,63754.0,2.06219279]
[1724446978490,0.003825,63755.0,63754.0,2.06519279]
[1724446978700,0.003825,63755.0,63754.0,2.07147779]
[1724446979642,0.003825,63755.0,63754.0,2.06847779]
[1724446979872,0.003825,63755.0,63754.0,2.06947779]
[1724446980345,0.003825,63755.0,63754.0,2.06847779]
[1724446981267,0.003825,63755.0,63754.0,2.07147779]
[1724446981998,0.003825,63755.0,63754.0,2.38718279]
[1724446982217,0.003825,63755.0,63754.0,2.38518279]
[1724446982712,0.003825,63755.0,63754.0,2.38718279]
[1724446986268,0.003825,63755.0,63754.0,2.38318279]
[1724446986484,0.003825,63755.0,63754.0,2.38718279]
[1724446989035,0.003825,63755.0,63754.0,3.88718279]
[1724446989696,0.002825,63755.0,63754.0,3.87318279]
[1724446990135,0.002825,63755.0,63754.0,2.37318279]
[1724446990356,0.001825,63755.0,63754.0,2.36818279]
[1724446990572,0.001825,63755.0,63754.0,2.38218279]
[1724446990785,0.001825,63755.0,63754.0,2.36818279]
[1724446991005,0.001825,63755.0,63754.0,2.35418279]
[1724446991006,0.000825,63755.0,63754.0,2.35418279]
[1724446991220,0.001825,63755.0,63754.0,2.38218279]
[1724446991853,0.001825,63755.0,63754.0,2.38318279]
[1724446992286,0.001825,63755.0,63754.0,2.38409139]
[1724446992987,0.001825,63755.0,63754.0,2.38609139]
[1724446993418,0.001825,63755.0,63754.0,2.38309139]
[1724446993634,0.001825,63755.0,63754.0,2.46151139]
[1724446994713,0.001825,63755.0,63754.0,2.14780639]
[1724446999434,0.001825,63755.0,63754.0,2.13380639]
[1724446999658,0.000825,63755.0,63754.0,2.11980639]
[1724446999905,0.000825,63755.0,63754.0,2.13380639]
[1724447000123,0.000825,63755.0,63754.0,2.14780639]
[1724447000373,0.000825,63755.0,63754.0,2.13380639]
[1724447000590,0.000825,63755.0,63754.0,2.11980639]
[1724447000813,0.000825,63755.0,63754.0,2.13380639]
[1724447001080,0.000825,63755.0,63754.0,2.14780639]
[1724447007119,0.000825,63755.0,63754.0,2.14880639]
[1724447007348,0.000825,63755.0,63754.0,2.14780639]
[1724447007787,0.000825,63755.0,63754.0,2.15080639]
[1724447009596,0.000825,63755.0,63754.0,2.14780639]
[1724447009825,0.000825,63755.0,63754.0,2.14880639]
[1724447010068,0.000825,63755.0,63754.0,2.15080639]
[1724447010522,0.000825,63755.0,63754.0,2.14780639]
[1724447010750,8.148e-05,63762.0,63761.0,1.411519]
[1724447010993,8.148e-05,63762.0,63761.0,1.68368319]
[1724447011248,8.148e-05,63762.0,63761.0,1.76208319]
[1724447011994,8.148e-05,63762.0,63761.0,1.77208319]
[1724447012651,8.148e-05,63762.0,63761.0,1.69368319]
[1724447013078,8.148e-05,63762.0,63761.0,1.70368319]
[1724447024718,8.148e-05,63762.0,63761.0,2.23202335]
[1724447024959,8.148e-05,63762.0,63761.0,2.32766998]
[1724447025200,8.148e-05,63762.0,63761.0,2.39810003]
[1724447025440,8.148e-05,63762.0,63761.0,2.40010003]
[1724447026569,8.148e-05,63762.0,63761.0,2.38610003]
[1724447026782,8.148e-05,63762.0,63761.0,2.39910003]
[1724447027209,8.148e-05,63762.0,63761.0,2.33450003]
[1724447027428,8.148e-05,63762.0,63761.0,2.26406998]
[1724447027683,8.148e-05,63762.0,63761.0,2.25406998]
[1724447028119,8.148e-05,63762.0,63761.0,2.26806998]
[1724447028586,0.06628148,63762.0,63761.0,1.712396]
[1724447032456,8.148e-05,63762.0,63761.0,1.712396]
[1724447032595,8.148e-05,63762.0,63761.0,2.32826998]
[1724447032799,8.148e-05,63762.0,63761.0,2.40067071]
[1724447032999,8.148e-05,63762.0,63761.0,2.33026998]
[1724447033579,8.148e-05,63762.0,63761.0,2.32726998]
[1724447033789,8.148e-05,63762.0,63761.0,2.26596998]
[1724447034210,8.148e-05,63762.0,63761.0,2.26896998]
[1724447035423,8.148e-05,63762.0,63761.0,2.33940042]
[1724447035620,8.148e-05,63762.0,63761.0,2.33640042]
[1724447038220,8.148e-05,63762.0,63761.0,2.33740042]
[1724447038935,8.148e-05,63762.0,63761.0,2.33640042]
[1724447039382,8.148e-05,63762.0,63761.0,2.33740042]
[1724447039832,8.148e-05,63762.0,63761.0,2.33640042]
[1724447041335,8.148e-05,63762.0,63761.0,2.33740042]
[1724447041772,8.148e-05,63762.0,63761.0,2.33741356]
[1724447041992,8.148e-05,63762.0,63761.0,2.33941356]
[1724447042418,8.148e-05,63762.0,63761.0,2.33641356]
[1724447043287,8.148e-05,63762.0,63761.0,2.33741356]
[1724447043481,8.148e-05,63762.0,63761.0,2.33941356]
[1724447043766,8.148e-05,63762.0,63761.0,2.33641356]
[1724447044782,8.148e-05,63762.0,63761.0,2.26596998]
[1724447044992,8.148e-05,63762.0,63761.0,2.19006998]
[1724447045198,0.06458148,63762.0,63761.0,2.19006998]
[1724447046933,0.06458148,63762.0,63761.0,2.23700628]
[1724447047581,0.06458148,63762.0,63761.0,1.92333528]
[1724447047812,0.06458148,63762.0,63761.0,2.19006998]
[1724447048229,0.06458148,63762.0,63761.0,2.25291198]
[1724447049725,0.06458148,63762.0,63761.0,2.19006998]
[1724447050191,0.06458148,63762.0,63761.0,2.19097748]
[1724447051087,0.06458148,63762.0,63761.0,1.87730648]
[1724447058883,0.06458148,63762.0,63761.0,2.19097748]
[1724447059097,0.07053445,63779.0,63761.0,2.19097748]
[1724447059098,0.0656,63780.0,63779.0,1.41183181]
[1724447059305,0.009086,63782.0,63781.0,0.47107181]
[1724447059515,0.009086,63782.0,63781.0,1.41179081]
[1724447060531,0.010086,63782.0,63781.0,1.41179081]
[1724447060954,0.010086,63782.0,63781.0,1.42579081]
[1724447061593,0.010086,63782.0,63781.0,1.41179081]
[1724447061794,0.009086,63782.0,63781.0,1.41179081]
[1724447062003,0.009086,63782.0,63781.0,1.42579081]
[1724447062224,0.009086,63782.0,63781.0,1.41179081]
[1724447062694,0.009086,63782.0,63781.0,1.42579081]
[1724447062906,0.009086,63782.0,63781.0,1.43979081]
[1724447063756,0.009086,63782.0,63781.0,1.73936381]
[1724447064660,0.009086,63782.0,63781.0,1.42579081]
[1724447065317,0.009086,63782.0,63781.0,1.43979081]
[1724447071298,0.147386,63782.0,63781.0,1.43979081]
[1724447071952,0.147386,63782.0,63781.0,1.42579081]
[1724447072164,0.147386,63782.0,63781.0,1.41179081]
[1724447072374,0.147386,63782.0,63781.0,1.43979081]
[1724447072845,0.147386,63782.0,63781.0,1.42579081]
[1724447073084,0.147386,63782.0,63781.0,1.43879081]
[1724447073324,0.147386,63782.0,63781.0,1.45179081]
[1724447078070,0.047386,63782.0,63781.0,1.45179081]
[1724447085018,0.123386,63782.0,63781.0,0.82464481]
[1724447085230,0.123386,63782.0,63781.0,0.823932]
[1724447085448,0.123386,63782.0,63781.0,0.510359]
[1724447085653,0.123386,63782.0,63781.0,0.04]
[1724447085654,0.28738898,63782.0,63781.0,0.04]
[1724447085909,0.076,63780.0,63776.0,0.313595]
[1724447086117,0.30630298,63780.0,63779.0,0.156791]
[1724447086585,0.30630298,63780.0,63779.0,0.470373]
[1724447088915,0.30930298,63780.0,63779.0,0.156791]
[1724447089341,0.30630298,63780.0,63779.0,0.156791]
[1724447089576,0.30930298,63780.0,63779.0,0.156791]
[1724447090899,0.30930298,63780.0,63779.0,0.470373]
[1724447091306,0.0605,63777.0,63776.0,0.313596]
[1724447091930,0.0605,63777.0,63776.0,0.783991]
[1724447092137,0.1428,63777.0,63776.0,0.470394]
[1724447092519,0.1448,63777.0,63776.0,0.470394]
[1724447092724,0.1458,63777.0,63776.0,0.470394]
[1724447093382,0.1428,63776.0,63775.0,0.156799]
[1724447093628,0.1428,63776.0,63775.0,0.470401]
[1724447094728,0.1438,63776.0,63775.0,0.470401]
[1724447097896,0.15210863,63776.0,63775.0,0.470401]
[1724447098821,0.1438,63776.0,63775.0,0.470401]
[1724447100970,0.1438,63776.0,63775.0,0.784003]
[1724447104178,0.1438,63776.0,63775.0,0.470401]
[1724447104607,0.1406,63775.0,63774.0,0.0009075]
[1724447104846,0.30460298,63775.0,63774.0,0.0009075]
[1724447105120,0.30460298,63775.0,63774.0,0.1577105]
[1724447105331,0.46140398,63775.0,63774.0,0.0009075]
[1724447105545,0.30460298,63775.0,63774.0,0.1577105]
[1724447105751,0.30460298,63775.0,63774.0,0.0019075]
[1724447107011,0.30460298,63775.0,63774.0,0.1587105]
[1724447107428,0.30460298,63775.0,63774.0,0.4723175]
[1724447107632,0.30460298,63775.0,63774.0,0.0019075]
[1724447107845,0.30460298,63775.0,63774.0,0.1587105]
[1724447108053,0.30460298,63775.0,63774.0,0.1577105]
[1724447108696,0.30660298,63775.0,63774.0,0.1577105]
[1724447109260,0.30760298,63775.0,63774.0,0.1577105]
[1724447110257,0.30760298,63775.0,63774.0,0.0009075]
[1724447111541,0.30760298,63775.0,63774.0,0.1577105]
[1724447112175,0.30760298,63775.0,63774.0,0.0009075]
[1724447112883,0.46440398,63775.0,63774.0,0.0009075]
[1724447113301,0.46444398,63775.0,63774.0,0.0009075]
[1724447113736,0.30764298,63775.0,63774.0,0.0009075]
[1724447113959,0.308643,63775.0,63774.0,0.0009075]
[1724447114206,0.465444,63775.0,63774.0,0.0009075]
[1724447114415,0.47657211,63775.0,63774.0,0.0009075]
[1724447115071,0.31977111,63775.0,63774.0,0.0009075]
[1724447115485,0.30764298,63775.0,63774.0,0.0009075]
[1724447115672,0.31977111,63775.0,63774.0,0.0009075]
[1724447115873,0.47757213,63775.0,63774.0,0.0009075]
[1724447116605,1.10477613,63775.0,63774.0,0.0009075]
[1724447116834,0.79117413,63775.0,63774.0,0.0009075]
[1724447117393,0.83807367,63775.0,63774.0,0.0009075]
[1724447118793,1.15167567,63775.0,63774.0,0.0009075]
[1724447119007,1.17467565,63775.0,63774.0,0.0009075]
[1724447119271,1.17667565,63775.0,63774.0,0.0009075]
[1724447119470,1.17367565,63775.0,63774.0,0.0009075]
[1724447120335,1.12677611,63775.0,63774.0,0.0009075]
[1724447120627,1.11464798,63775.0,63774.0,0.0009075]
[1724447120829,1.12677642,63775.0,63774.0,0.0009075]
[1724447121036,1.11464798,63775.0,63774.0,0.0009075]
[1724447121179,1.12677642,63775.0,63774.0,0.0009075]
[1724447121818,0.81317442,63775.0,63774.0,0.0009075]
[1724447122019,2.20594369,63775.0,63774.0,0.0009075]
[1724447122231,2.20594369,63775.0,63774.0,1e-08]
[1724447122232,2.42570582,63775.0,63774.0,1e-08]
[1724447122447,0.30180719,63767.0,63766.0,0.0009075]
[1724447122649,1.26228525,63767.0,63766.0,0.0009075]
[1724447123897,0.94836034,63767.0,63766.0,0.0009075]
[1724447124115,0.86237598,63767.0,63766.0,0.1577305]
[1724447124307,0.86237598,63767.0,63766.0,0.0009075]
[1724447124507,0.92636034,63767.0,63766.0,0.0009075]
[1724447124718,0.6490251,63767.0,63766.0,0.0009075]
[1724447125139,0.5786547,63767.0,63766.0,0.0009075]
[1724447125339,0.8922957,63767.0,63766.0,0.0009075]
[1724447126077,1.00333201,63767.0,63766.0,0.0009075]
[1724447126280,1.0736983,63767.0,63766.0,0.0009075]
[1724447126487,1.35105099,63767.0,63766.0,0.0009075]
[1724447126710,1.45303473,63767.0,63766.0,0.0009075]
[1724447126984,1.45304412,63767.0,63766.0,0.0009075]
[1724447127806,1.34200781,63767.0,63766.0,0.0009075]
[1724447128314,1.24817047,63767.0,63766.0,0.0009075]
[1724447128567,1.56609866,63767.0,63766.0,0.0009075]
[1724447128738,2.17490385,63767.0,63766.0,0.0009075]
[1724447129365,3.03159158,63767.0,63766.0,0.0009075]
[1724447129569,2.88192936,63767.0,63766.0,0.0009075]
[1724447129818,2.87630109,63767.0,63766.0,0.0009075]
[1724447130262,2.71314789,63767.0,63766.0,0.0009075]
[1724447130475,2.71814789,63767.0,63766.0,0.0019075]
[1724447130694,2.72614789,63767.0,63766.0,0.0029075]
[1724447130949,2.71814789,63767.0,63766.0,0.0019075]
[1724447131281,2.88455964,63767.0,63766.0,0.0029075]
[1724447131485,3.04853842,63767.0,63766.0,0.0029075]
[1724447131705,3.04293964,63767.0,63766.0,0.0019075]
[1724447132121,2.89451947,63767.0,63766.0,0.0029075]
[1724447132497,0.92895219,63762.0,63761.0,0.0009075]
[1724447135420,1.59487158,63762.0,63761.0,0.0029075]
[1724447135791,1.58087158,63762.0,63761.0,0.0019075]
[1724447135990,1.76085036,63762.0,63761.0,0.0029075]
[1724447136312,1.76285036,63762.0,63761.0,0.0029075]
[1724447136851,1.59487158,63762.0,63761.0,0.0029075]
[1724447137077,1.26907448,63762.0,63761.0,0.0029075]
[1724447137289,0.88865235,63762.0,63761.0,1e-08]
[1724447137418,0.18700298,63762.0,63761.0,1e-08]
[1724447138251,0.17300298,63762.0,63760.0,0.156837]
[1724447138429,0.16400298,63761.0,63759.0,0.156839]
[1724447138626,0.1,63760.0,63759.0,0.156839]
[1724447138835,0.26400298,63760.0,63759.0,0.156839]
[1724447140126,0.27300298,63760.0,63759.0,0.157839]
[1724447140973,0.17300298,63760.0,63759.0,0.863301]
[1724447141188,0.18000298,63760.0,63759.0,0.864301]
[1724447141478,0.18000298,63760.0,63759.0,0.55062]
[1724447145025,0.18000298,63760.0,63759.0,0.5515286]
[1724447146689,0.016,63760.0,63759.0,0.92942241]
[1724447146897,0.016,63760.0,63759.0,0.9287096]
[1724447147101,0.016,63760.0,63759.0,1.24310341]
[1724447147525,4e-05,63762.0,63761.0,1.097848]
[1724447147877,4e-05,63762.0,63761.0,1.239448]
[1724447148757,4e-05,63762.0,63761.0,1.245448]
[1724447149491,4e-05,63762.0,63761.0,0.554606]
[1724447149732,4e-05,63762.0,63761.0,0.24164781]
[1724447149986,4e-05,63762.0,63761.0,1.25016081]
[1724447150443,4e-05,63762.0,63761.0,1.56383181]
[1724447158000,0.000866,63762.0,63761.0,1.56383181]
[1724447158400,0.000866,63762.0,63761.0,1.25016081]
[1724447161461,0.064466,63762.0,63761.0,0.0881]
[1724447161696,0.064466,63762.0,63761.0,0.01]
[1724447161697,0.22846898,63762.0,63761.0,0.01]
[1724447162366,0.229469,63762.0,63761.0,0.01]
[1724447162804,0.229469,63762.0,63761.0,0.006]
[1724447162805,1.23422283,63762.0,63761.0,0.006]
[1724447163019,1.1216429,63762.0,63761.0,0.006]
[1724447163223,1.4373089,63762.0,63761.0,0.006]
[1724447163427,1.4373089,63762.0,63759.0,0.0009086]
[1724447163428,0.61180119,63760.0,63759.0,0.0009086]
[1724447163662,1.11248017,63760.0,63759.0,0.0009086]
[1724447164491,1.19796296,63760.0,63759.0,0.0009086]
[1724447164691,1.20796296,63760.0,63759.0,0.0019086]
[1724447165317,1.30996296,63760.0,63759.0,0.0019086]
[1724447165730,1.31196296,63760.0,63759.0,0.0019086]
[1724447165934,1.31196296,63760.0,63759.0,0.0029086]
[1724447165935,1.32296296,63760.0,63759.0,0.0029086]
[1724447166181,2.0903181,63760.0,63759.0,0.0029086]
[1724447166386,2.11376238,63760.0,63759.0,1e-08]
[1724447166871,2.31021937,63760.0,63759.0,1e-08]
[1724447167357,1.51880138,63755.0,63754.0,0.0793286]
[1724447167572,2.44688692,63755.0,63754.0,0.0793286]
[1724447168002,2.64338755,63755.0,63754.0,0.0793286]
[1724447168414,2.2956165,63755.0,63754.0,0.0793286]
[1724447168632,2.64343514,63755.0,63754.0,0.0793286]
[1724447169045,1.24668919,63752.0,63750.0,1.2859075]
[1724447169261,1.89364417,63752.0,63750.0,1.2859075]
[1724447169481,1.88151081,63752.0,63750.0,1.2859075]
[1724447169697,1.89364277,63752.0,63750.0,1.2859075]
[1724447169954,2.29328497,63752.0,63750.0,1.285]
[1724447170159,2.19624883,63751.0,63750.0,1.22471229]
[1724447170372,2.50996883,63751.0,63750.0,1.15811229]
[1724447170581,2.44806883,63751.0,63750.0,0.87991229]
[1724447170787,2.61204761,63751.0,63750.0,0.87991229]
[1724447171673,2.6261479,63751.0,63750.0,0.87991229]
[1724447172303,2.6401479,63751.0,63750.0,0.87991229]
[1724447172745,2.6401479,63751.0,63750.0,0.88327229]
[1724447173420,2.75702443,63751.0,63750.0,0.88327229]
[1724447174108,2.75602441,63751.0,63750.0,0.88327229]
[1724447174309,2.75603182,63751.0,63750.0,0.88327229]
[1724447174517,2.63914764,63751.0,63750.0,0.88327229]
[1724447174724,2.47516886,63751.0,63750.0,0.88327229]
[1724447175355,2.5686195,63751.0,63750.0,0.88327229]
[1724447177472,2.47516886,63751.0,63750.0,0.88327229]
[1724447178391,2.12725017,63751.0,63750.0,0.88327229]
[1724447179497,2.19725283,63751.0,63750.0,0.88327229]
[1724447179718,2.36123161,63751.0,63750.0,0.88327229]
[1724447180475,2.29122895,63751.0,63750.0,0.88327229]
[1724447180720,2.75603068,63751.0,63750.0,0.88327229]
[1724447181909,2.44231068,63751.0,63750.0,0.88327229]
[1724447182153,1.9416119,63751.0,63750.0,0.88327229]
[1724447182339,1.52344571,63751.0,63750.0,0.88327229]
[1724447182544,1.47681017,63751.0,63750.0,0.88327229]
[1724447182747,1.47681017,63751.0,63750.0,0.88418089]
[1724447183215,1.47763617,63751.0,63750.0,0.88418089]
[1724447183426,1.64161495,63751.0,63750.0,0.88418089]